bitfinex-derivatives/quotes_BTCF0:USTF0_20250313
["timestamp","ask_amount","ask_price","bid_price","bid_amount"]
[1741896281167,0.1968709,80565.0,80564.0,0.13412055]
[1741896281363,0.0620867,80564.0,80558.0,0.0620903]
[1741896281566,0.1241797,80559.0,80558.0,0.186265]
[1741896281868,0.1862896,80552.0,80551.0,0.1241865]
[1741896282064,0.1862896,80552.0,80551.0,0.2483735]
[1741896283863,0.1241936,80550.0,80549.0,0.00018627]
[1741896284267,0.1231936,80550.0,80549.0,0.00018627]
[1741896284471,0.2508936,80550.0,80549.0,0.12438147]
[1741896284868,0.2508936,80550.0,80549.0,0.00018627]
[1741896285061,0.2612467,80550.0,80549.0,0.00018627]
[1741896285462,0.2612467,80550.0,80549.0,0.00118627]
[1741896285970,0.2612467,80550.0,80549.0,0.00318627]
[1741896286473,0.0621129,80532.0,80531.0,0.124218]
[1741896287265,0.1908129,80532.0,80531.0,0.13814964]
[1741896287961,0.1908129,80532.0,80531.0,0.127218]
[1741896289063,0.1297,80532.0,80531.0,0.128218]
[1741896289376,0.2539214,80532.0,80531.0,0.128218]
[1741896289766,0.2549214,80532.0,80531.0,0.124218]
[1741896289963,0.1242291,80527.0,80526.0,0.1863414]
[1741896290168,0.1242291,80527.0,80510.0,0.25347001]
[1741896290169,0.13496,80527.0,80506.0,0.37205599]
[1741896290369,0.1863705,80518.0,80517.0,0.1242377]
[1741896291258,0.0621229,80518.0,80515.0,0.0621238]
[1741896291464,0.1242461,80516.0,80515.0,0.0621238]
[1741896291861,0.2568461,80516.0,80515.0,0.0621238]
[1741896292176,0.1326,80516.0,80515.0,0.0621238]
[1741896292474,0.2568461,80516.0,80515.0,0.0621238]
[1741896292874,0.2568461,80516.0,80515.0,0.1977238]
[1741896293077,0.1242553,80510.0,80502.0,0.29615432]
[1741896293469,0.1242553,80510.0,80509.0,0.12444317]
[1741896293670,0.1232553,80510.0,80509.0,0.12444317]
[1741896294076,0.1860553,80510.0,80509.0,0.12444317]
[1741896294572,0.1860553,80510.0,80509.0,0.19414317]
[1741896294777,0.2546553,80510.0,80509.0,0.26204317]
[1741896295576,0.2546553,80510.0,80509.0,0.26504317]
[1741896295772,0.2546553,80510.0,80509.0,0.00518627]
[1741896295971,0.26535695,80510.0,80509.0,0.00518627]
[1741896296977,0.2546553,80510.0,80509.0,0.00518627]
[1741896297176,0.2546553,80510.0,80509.0,0.19834317]
[1741896297377,0.2546553,80510.0,80509.0,0.26524317]
[1741896298570,0.1863663,80521.0,80520.0,0.0621186]
[1741896298972,0.3213263,80521.0,80520.0,0.0621186]
[1741896299172,0.1242461,80516.0,80515.0,0.0621237]
[1741896299975,0.1906461,80516.0,80515.0,0.0621237]
[1741896300282,0.1242476,80515.0,80514.0,0.0648]
[1741896300485,0.1886476,80515.0,80514.0,0.1890491]
[1741896300687,0.1242553,80510.0,80509.0,0.12644317]
[1741896300987,0.1242553,80510.0,80509.0,0.12444317]
[1741896301581,0.1232553,80510.0,80509.0,0.12444317]
[1741896301772,0.0664,80514.0,80509.0,0.12444317]
[1741896301773,0.19936,80515.0,80511.0,0.0621261]
[1741896301980,0.13496,80515.0,80514.0,0.1242491]
[1741896302185,0.2592076,80515.0,80514.0,0.1242491]
[1741896302376,0.1242476,80515.0,80514.0,0.1242491]
[1741896302778,0.0666,80520.0,80514.0,0.001]
[1741896302993,0.00018627,80525.0,80524.0,0.1242337]
[1741896303486,0.12441847,80525.0,80524.0,0.1242337]
[1741896303882,0.00018627,80525.0,80524.0,0.1242337]
[1741896304878,0.00218627,80525.0,80524.0,0.1242337]
[1741896305088,0.12641847,80525.0,80524.0,0.13460516]
[1741896305890,0.12841847,80525.0,80524.0,0.13460516]
[1741896306487,0.12841847,80525.0,80524.0,0.01037146]
[1741896306793,0.1242553,80510.0,80509.0,0.18656887]
[1741896306993,0.1242553,80510.0,80509.0,0.24869587]
[1741896307380,0.1242553,80510.0,80509.0,0.12444317]
[1741896307595,0.12426,80507.0,80506.0,6e-08]
[1741896307900,0.0621349,80501.0,80497.0,0.29615432]
[1741896308194,0.2488065,80500.0,80499.0,0.1242723]
[1741896308388,0.3180065,80500.0,80499.0,0.1242723]
[1741896308582,0.3180065,80500.0,80499.0,0.1909723]
[1741896308782,0.1296,80500.0,80499.0,0.1909723]
[1741896309093,0.1846708,80500.0,80499.0,0.2551723]
[1741896309287,0.1846708,80500.0,80499.0,0.14468789]
[1741896309485,0.1846708,80500.0,80499.0,0.01378789]
[1741896309793,0.1826708,80500.0,80499.0,0.13806019]
[1741896309991,0.0584,80500.0,80498.0,0.0667]
[1741896310190,0.1242738,80498.0,80497.0,0.1242746]
[1741896310387,0.1242831,80492.0,80491.0,0.00018627]
[1741896311194,0.1243001,80482.0,80481.0,0.1864379]
[1741896311385,0.0621472,80485.0,80481.0,0.3228379]
[1741896311580,0.1242964,80484.0,80483.0,0.1242955]
[1741896311981,0.13496,80487.0,80483.0,0.13815459]
[1741896312187,0.1242874,80490.0,80489.0,0.1242847]
[1741896312493,0.13496,80491.0,80489.0,0.13489209]
[1741896312791,0.02175,80491.0,80490.0,0.1864286]
[1741896313197,0.02175,80491.0,80490.0,0.20028769]
[1741896313786,0.02375,80491.0,80490.0,0.20028769]
[1741896314823,0.02475,80491.0,80490.0,0.20028769]
[1741896315198,0.02375,80491.0,80490.0,0.20028769]
[1741896315396,0.02375,80491.0,80490.0,0.20128769]
[1741896315788,0.0639,80505.0,80490.0,0.01385909]
[1741896316099,0.0639,80505.0,80504.0,0.1242646]
[1741896316487,0.188163,80505.0,80504.0,0.1242646]
[1741896316689,0.188163,80505.0,80504.0,0.13812369]
[1741896317183,0.0639,80505.0,80504.0,0.13812369]
[1741896317391,0.188163,80505.0,80504.0,0.13812369]
[1741896318095,0.191163,80505.0,80504.0,0.13812369]
[1741896318496,0.0669,80505.0,80504.0,0.14847039]
[1741896318696,0.003,80505.0,80504.0,0.14847039]
[1741896319094,0.2591938,80524.0,80512.0,0.1242522]
[1741896319287,0.0645,80523.0,80512.0,0.1242522]
[1741896319684,0.0645,80523.0,80512.0,0.13811129]
[1741896320100,0.12443697,80513.0,80512.0,0.13811129]
[1741896320785,0.12743697,80513.0,80512.0,0.13811129]
[1741896321290,0.25023697,80513.0,80512.0,0.13811129]
[1741896322602,0.25523697,80513.0,80512.0,0.13811129]
[1741896324198,0.25523697,80513.0,80512.0,0.01385909]
[1741896324389,0.1242754,80497.0,80485.0,0.00186357]
[1741896324595,0.1242754,80497.0,80491.0,0.1242837]
[1741896324893,0.1242754,80497.0,80492.0,0.01077056]
[1741896325411,0.1880754,80497.0,80492.0,0.01077056]
[1741896325600,0.1880754,80497.0,80488.0,0.3701929]
[1741896325795,0.1293,80497.0,80488.0,0.3701929]
[1741896326097,0.1242877,80489.0,80488.0,0.3701929]
[1741896326493,0.1242877,80489.0,80482.0,0.01067194]
[1741896326688,0.1242924,80487.0,80486.0,0.1242911]
[1741896327088,0.2506924,80487.0,80486.0,0.1242911]
[1741896327705,0.2506924,80487.0,80486.0,0.1881911]
[1741896327904,0.2506924,80487.0,80486.0,0.2515911]
[1741896328206,0.2506924,80487.0,80485.0,0.002]
[1741896328207,0.1242924,80486.0,80485.0,0.002]
[1741896328407,0.124297,80483.0,80482.0,0.13496724]
[1741896328606,0.1287474,80485.0,80484.0,0.1242955]
[1741896329399,0.0666,80485.0,80484.0,0.2503955]
[1741896329606,0.1242927,80486.0,80485.0,0.1242939]
[1741896329995,0.1847927,80486.0,80485.0,0.0651]
[1741896330197,0.1243032,80479.0,80475.0,0.1853089]
[1741896330402,0.1243032,80479.0,80478.0,0.01088578]
[1741896330705,0.1223032,80479.0,80478.0,0.01088578]
[1741896330895,0.1193032,80479.0,80478.0,0.01088578]
[1741896331096,0.2429032,80479.0,80478.0,0.13519048]
[1741896331304,0.1236,80479.0,80478.0,0.13519048]
[1741896331504,0.1236,80479.0,80478.0,0.13919048]
[1741896331810,0.2479032,80479.0,80478.0,0.13919048]
[1741896332513,0.2479032,80479.0,80478.0,0.14019048]
[1741896333013,0.1236,80479.0,80478.0,0.14019048]
[1741896333213,0.2479032,80479.0,80478.0,0.14019048]
[1741896334905,0.2479032,80479.0,80478.0,0.01588578]
[1741896335719,0.2479032,80479.0,80478.0,0.14019048]
[1741896336111,0.1236,80479.0,80478.0,0.14019048]
[1741896336617,0.2479032,80479.0,80478.0,0.14019048]
[1741896336916,0.2479032,80479.0,80478.0,0.20489048]
[1741896338515,0.1236,80479.0,80478.0,0.20489048]
[1741896338709,0.2479032,80479.0,80478.0,0.20489048]
[1741896338908,0.1236,80479.0,80478.0,0.20489048]
[1741896340219,0.2479032,80479.0,80478.0,0.20489048]
[1741896340432,0.1236,80479.0,80478.0,0.20489048]
[1741896340621,0.2479032,80479.0,80478.0,0.20489048]
[1741896341124,0.1236,80479.0,80478.0,0.20489048]
[1741896341312,0.0611,80479.0,80478.0,0.20489048]
[1741896341518,0.03106,80488.0,80478.0,0.10058578]
[1741896341821,0.03106,80488.0,80487.0,0.1242908]
[1741896342024,0.0625,80494.0,80487.0,0.1242908]
[1741896342211,0.0625,80494.0,80493.0,0.1242816]
[1741896342411,0.1246,80494.0,80493.0,0.1242816]
[1741896343119,0.1246,80494.0,80493.0,0.13814833]
[1741896345115,0.24888,80494.0,80493.0,0.01386673]
[1741896346020,0.1864467,80485.0,80484.0,0.1864363]
[1741896346526,0.1864467,80485.0,80484.0,0.20053977]
[1741896346722,0.1204,80488.0,80487.0,0.1242908]
[1741896346918,0.3095893,80488.0,80487.0,0.1242908]
[1741896347419,0.1243032,80479.0,80477.0,0.1243059]
[1741896347608,0.1243032,80479.0,80478.0,0.00418627]
[1741896347813,0.1243032,80479.0,80478.0,0.01825861]
[1741896348211,0.2395032,80479.0,80478.0,0.01825861]
[1741896348409,0.2395032,80479.0,80478.0,0.14256331]
[1741896349529,0.2395032,80479.0,80478.0,0.14356331]
[1741896350623,0.2395032,80479.0,80473.0,0.06228095]
[1741896350624,0.2619306,80479.0,80464.0,0.00186412]
[1741896350918,0.1243248,80465.0,80464.0,0.00186412]
[1741896351221,0.1243248,80465.0,80464.0,0.12619052]
[1741896351724,0.12445025,80465.0,80464.0,0.06822031]
[1741896352026,0.18535025,80465.0,80464.0,0.19254671]
[1741896352224,0.24125025,80465.0,80464.0,0.19254671]
[1741896352912,0.24125025,80465.0,80464.0,0.00186412]
[1741896353120,0.25189718,80465.0,80464.0,0.00186412]
[1741896353723,0.24125025,80465.0,80464.0,0.00186412]
[1741896354221,0.2411248,80465.0,80464.0,0.00186412]
[1741896354419,0.1243372,80457.0,80456.0,0.00018639]
[1741896354621,0.1244263,80457.0,80456.0,0.00018639]
[1741896355325,0.2394263,80457.0,80456.0,0.00018639]
[1741896355725,0.115,80457.0,80440.0,0.0587]
[1741896355917,0.1865403,80446.0,80445.0,0.124351]
[1741896356118,0.18663818,80446.0,80445.0,0.13566746]
[1741896356824,0.18663818,80446.0,80445.0,0.01131646]
[1741896357126,0.18663818,80446.0,80445.0,0.13538405]
[1741896357522,0.18663818,80446.0,80445.0,0.01102835]
[1741896357723,9.788e-05,80446.0,80440.0,0.0587]
[1741896357928,9.788e-05,80446.0,80445.0,0.1243557]
[1741896358226,0.00309788,80446.0,80445.0,0.13566018]
[1741896358621,0.00309788,80446.0,80445.0,0.25386018]
[1741896358818,0.12745208,80446.0,80445.0,0.19266116]
[1741896359017,0.12545208,80446.0,80445.0,0.19266116]
[1741896359418,0.18065208,80446.0,80445.0,0.19266116]
[1741896360016,0.05629788,80446.0,80445.0,0.19266116]
[1741896360222,0.18065208,80446.0,80445.0,0.19266116]
[1741896360432,0.05629788,80446.0,80445.0,0.19266116]
[1741896360824,0.05729788,80446.0,80445.0,0.19266116]
[1741896361518,0.05529788,80446.0,80445.0,0.19266116]
[1741896361723,0.05629788,80446.0,80445.0,0.19266116]
[1741896362025,0.00109788,80446.0,80445.0,0.19266116]
[1741896362821,0.00109788,80446.0,80445.0,0.20403628]
[1741896363015,0.00109788,80446.0,80445.0,0.21788254]
[1741896363621,0.00109788,80446.0,80445.0,0.21788137]
[1741896363821,0.00955954,80462.0,80450.0,0.0621736]
[1741896364028,0.1864925,80466.0,80465.0,0.1864845]
[1741896364825,0.0621631,80466.0,80465.0,0.19768373]
[1741896365226,0.00018639,80474.0,80473.0,0.1243125]
[1741896365730,0.12449729,80474.0,80473.0,0.1243125]
[1741896367019,0.12449729,80474.0,80473.0,0.13828391]
[1741896367326,0.00418639,80474.0,80473.0,0.13828391]
[1741896368024,0.00418639,80474.0,80473.0,0.1243125]
[1741896368228,0.00218639,80474.0,80473.0,0.1243125]
[1741896368431,0.12649729,80474.0,80473.0,0.1243125]
[1741896369030,0.00218639,80474.0,80470.0,0.0556]
[1741896369224,0.1243233,80466.0,80461.0,0.13484]
[1741896369427,0.0609,80473.0,80459.0,0.1197]
[1741896369628,0.1243325,80460.0,80459.0,0.0604]
[1741896369836,0.1243356,80458.0,80457.0,0.12452359]
[1741896370439,0.1852356,80458.0,80457.0,0.12452359]
[1741896370937,0.1852356,80458.0,80457.0,0.24422359]
[1741896371528,0.1852356,80458.0,80457.0,0.24622359]
[1741896372628,0.04971,80459.0,80458.0,0.1243356]
[1741896372831,0.04971,80459.0,80458.0,0.2437356]
[1741896373031,0.20035352,80490.0,80473.0,0.1243125]
[1741896373338,0.1243021,80480.0,80473.0,0.1243125]
[1741896373527,0.114,80484.0,80473.0,0.1243125]
[1741896373726,0.1243125,80473.0,80472.0,0.0594]
[1741896373928,0.1821125,80473.0,80472.0,0.183714]
[1741896374423,0.0578,80473.0,80472.0,0.183714]
[1741896374829,0.0578,80473.0,80472.0,0.244114]
[1741896375034,0.00018639,80474.0,80473.0,0.1243125]
[1741896375240,0.00018639,80474.0,80473.0,0.2446125]
[1741896375439,0.08695,80499.0,80476.0,0.1243078]
[1741896375440,0.0554,80485.0,80476.0,0.1243078]
[1741896375634,0.0554,80485.0,80473.0,0.1824558]
[1741896375940,0.1796944,80485.0,80484.0,0.1242955]
[1741896376238,0.0554,80485.0,80484.0,0.1242955]
[1741896376438,0.1796939,80485.0,80484.0,0.1242955]
[1741896376639,0.1243063,80477.0,80476.0,0.12449109]
[1741896377139,0.1243063,80477.0,80476.0,0.30869529]
[1741896378036,0.1243063,80477.0,80476.0,0.19548494]
[1741896378238,0.1243063,80477.0,80476.0,0.00018639]
[1741896378540,0.1864853,80469.0,80468.0,0.1243147]
[1741896378932,0.1864853,80469.0,80468.0,0.13537174]
[1741896379338,0.2416853,80469.0,80468.0,0.13537174]
[1741896379533,0.1243217,80467.0,80466.0,0.1789233]
[1741896381036,0.1253217,80467.0,80466.0,0.1789233]
[1741896382444,0.1243233,80466.0,80465.0,0.01078714]
[1741896382642,0.124331,80461.0,80460.0,0.00018639]
[1741896383044,0.0621666,80460.0,80446.0,0.12621856]
[1741896383239,0.1203526,80447.0,80446.0,0.00186456]
[1741896383546,0.13111883,80447.0,80446.0,0.00186456]
[1741896383741,0.1203665,80438.0,80431.0,0.44423148]
[1741896384039,0.1243743,80433.0,80432.0,0.44423148]
[1741896384639,0.27017043,80433.0,80432.0,0.44423148]
[1741896384842,0.0621928,80426.0,80419.0,0.51899007]
[1741896385143,0.1243897,80423.0,80419.0,0.51899007]
[1741896385452,0.2591497,80423.0,80419.0,0.51899007]
[1741896386345,0.2591497,80423.0,80422.0,0.12450875]
[1741896386553,0.2591497,80423.0,80422.0,0.00011745]
[1741896386746,0.2601497,80423.0,80422.0,0.00011745]
[1741896387635,0.13576,80423.0,80392.0,0.13476]
[1741896387832,0.1866324,80404.0,80403.0,0.1244149]
[1741896388046,0.0622086,80406.0,80403.0,0.2488302]
[1741896388249,0.0622086,80406.0,80401.0,0.1783114]
[1741896388250,0.1143,80405.0,80404.0,0.1820191]
[1741896388641,0.11441682,80405.0,80404.0,0.1820191]
[1741896389734,0.05541682,80405.0,80404.0,0.1820191]
[1741896389939,0.00018651,80420.0,80404.0,0.06870019]
[1741896390247,0.00018651,80420.0,80419.0,0.1243959]
[1741896390639,0.04888651,80422.0,80419.0,0.1243959]
[1741896390840,0.1243944,80420.0,80419.0,0.1865901]
[1741896391741,0.1243944,80420.0,80419.0,0.0621973]
[1741896392338,0.0555,80421.0,80420.0,0.1243944]
[1741896392541,0.1798928,80421.0,80420.0,0.1243944]
[1741896393150,0.1798928,80421.0,80420.0,0.1807944]
[1741896393546,0.1798928,80421.0,80420.0,0.13526402]
[1741896393941,0.1798928,80421.0,80420.0,0.01086962]
[1741896394144,0.248807,80417.0,80416.0,0.1243944]
[1741896395242,0.0622,80417.0,80416.0,0.1243944]
[1741896395649,0.0622017,80415.0,80414.0,0.1244033]
[1741896395839,0.0602017,80415.0,80414.0,0.1244033]
[1741896396042,0.1711017,80415.0,80414.0,0.1244033]
[1741896396452,0.1711017,80415.0,80403.0,0.0564]
[1741896396453,0.1224068,80412.0,80403.0,0.0564]
[1741896396748,0.1224068,80412.0,80401.0,0.0622113]
[1741896396955,0.1224068,80412.0,80403.0,0.1244194]
[1741896397247,0.1204068,80412.0,80403.0,0.1244194]
[1741896397553,0.1204068,80412.0,80400.0,0.1]
[1741896397750,0.1214068,80412.0,80411.0,0.00218651]
[1741896398944,0.1214068,80412.0,80411.0,1e-08]
[1741896398945,0.2365068,80412.0,80411.0,1e-08]
[1741896399447,0.1244238,80401.0,80400.0,0.1]
[1741896400048,0.2395238,80401.0,80400.0,0.1]
[1741896401757,0.2405238,80401.0,80400.0,0.101]
[1741896402052,0.2405238,80401.0,80400.0,0.2254253]
[1741896403554,0.1161,80401.0,80400.0,0.2254253]
[1741896403760,0.0597,80401.0,80400.0,0.2254253]
[1741896404149,0.001,80401.0,80400.0,0.2254253]
[1741896405055,0.0009103,80401.0,80400.0,0.2254253]
[1741896405956,0.08705,80413.0,80400.0,0.101]
[1741896406157,0.08705,80413.0,80408.0,0.1244129]
[1741896406351,0.08705,80413.0,80406.0,0.0622072]
[1741896406553,0.1866349,80403.0,80402.0,0.1866265]
[1741896406846,0.1866349,80403.0,80402.0,0.2488368]
[1741896407458,0.0622111,80403.0,80402.0,0.2488368]
[1741896407751,0.1866282,80405.0,80404.0,0.1244191]
[1741896408356,0.0622095,80405.0,80404.0,0.1244191]
[1741896408766,0.1555066,80406.0,80405.0,0.1244176]
[1741896409062,0.1555066,80406.0,80405.0,0.1833176]
[1741896409860,0.2157066,80406.0,80405.0,0.1833176]
[1741896410058,0.2167066,80406.0,80405.0,0.1833176]
[1741896410653,0.2187066,80406.0,80405.0,0.1833176]
[1741896410956,0.2187066,80406.0,80400.0,0.1]
[1741896410957,0.09429,80406.0,80400.0,0.1]
[1741896411148,0.1244238,80401.0,80400.0,0.1]
[1741896411354,0.2591838,80401.0,80400.0,0.1]
[1741896411564,0.13476,80401.0,80381.0,0.1199266]
[1741896411749,0.1244518,80386.0,80385.0,0.0622229]
[1741896412665,0.0622258,80384.0,80377.0,0.00186615]
[1741896412855,0.0622258,80383.0,80382.0,0.0585]
[1741896413168,0.2470774,80383.0,80382.0,0.0505]
[1741896413663,0.1244594,80378.0,80377.0,0.00186615]
[1741896414163,0.1244702,80372.0,80371.0,0.1244692]
[1741896415062,0.1849702,80372.0,80371.0,0.1244692]
[1741896415357,0.1244718,80370.0,80369.0,0.2227459]
[1741896415750,0.13541798,80370.0,80369.0,0.2227459]
[1741896416363,0.19591798,80370.0,80369.0,0.2227459]
[1741896416658,0.1849718,80370.0,80369.0,0.1244733]
[1741896417257,0.001,80372.0,80371.0,0.1244702]
[1741896417565,0.2592266,80374.0,80373.0,0.1244671]
[1741896418653,0.0623,80381.0,80380.0,0.1244563]
[1741896418859,0.0622235,80386.0,80385.0,0.124447]
[1741896419056,0.259207,80387.0,80386.0,0.124447]
[1741896419253,0.259207,80387.0,80386.0,0.185647]
[1741896420359,0.260207,80387.0,80386.0,0.0612]
[1741896420560,0.260207,80387.0,80386.0,0.185647]
[1741896421160,0.125447,80387.0,80386.0,0.185647]
[1741896422457,0.188547,80387.0,80386.0,0.185647]
[1741896423867,0.0641,80387.0,80386.0,0.185647]
[1741896424765,0.1885454,80387.0,80386.0,0.185647]
[1741896425363,0.1885454,80387.0,80386.0,0.0612]
[1741896425558,0.1244702,80371.0,80370.0,0.2227459]
[1741896425763,0.1244702,80371.0,80370.0,0.35847951]
[1741896425969,0.0622343,80373.0,80372.0,0.1244687]
[1741896426170,0.0622343,80373.0,80372.0,0.13573401]
[1741896426358,0.0622343,80373.0,80372.0,0.14688045]
[1741896426553,0.0908,80374.0,80373.0,0.1244671]
[1741896426759,0.0311,80374.0,80373.0,0.19333241]
[1741896426959,0.0311,80374.0,80373.0,0.25173241]
[1741896427160,0.1555656,80374.0,80373.0,0.25173241]
[1741896427561,0.0311,80374.0,80373.0,0.26554031]
[1741896428066,0.1555656,80374.0,80373.0,0.26554031]
[1741896428967,0.1555656,80374.0,80373.0,0.2404671]
[1741896429163,0.1555656,80374.0,80373.0,0.26592525]
[1741896429368,0.1565656,80374.0,80373.0,0.0723722]
[1741896432074,0.1254656,80374.0,80373.0,0.3378544]
[1741896432262,0.1254656,80374.0,80373.0,0.0304545]
[1741896432868,0.1254656,80374.0,80373.0,0.1549216]
[1741896433068,0.1254656,80374.0,80373.0,0.03048471]
[1741896433468,0.13687374,80374.0,80373.0,0.03048471]
[1741896433670,0.19957374,80374.0,80373.0,0.03148471]
[1741896433863,0.19957374,80374.0,80373.0,0.0199722]
[1741896434770,0.19957374,80374.0,80373.0,0.006]
[1741896435874,0.20057374,80374.0,80373.0,0.005]
[1741896436469,0.07610814,80374.0,80373.0,0.005]
[1741896436664,0.33529374,80374.0,80373.0,0.005]
[1741896437070,0.21082814,80374.0,80373.0,0.005]
[1741896437278,0.33529374,80374.0,80373.0,0.14361719]
[1741896437773,0.33529374,80374.0,80373.0,0.01915009]
[1741896439365,0.1867301,80362.0,80361.0,0.1244848]
[1741896439570,0.1867301,80362.0,80361.0,0.13606567]
[1741896439974,0.1817301,80362.0,80361.0,0.13606567]
[1741896440372,0.1817301,80362.0,80361.0,0.01158087]
[1741896440677,0.1827301,80362.0,80361.0,0.01658087]
[1741896441481,0.1827301,80362.0,80361.0,0.14106657]
[1741896442576,0.0582428,80362.0,80361.0,0.14106657]
[1741896442874,0.1217428,80362.0,80361.0,0.14106657]
[1741896443881,0.1217428,80362.0,80361.0,0.1294857]
[1741896446277,0.1820428,80362.0,80361.0,0.1294857]
[1741896446682,0.1820428,80362.0,80361.0,0.1893857]
[1741896449485,0.1820428,80362.0,80361.0,0.005]
[1741896449882,0.2424428,80362.0,80361.0,0.005]
[1741896450286,0.186765,80346.0,80345.0,0.1245097]
[1741896450588,0.186765,80346.0,80345.0,0.01164297]
[1741896450777,0.186765,80346.0,80345.0,0.13615347]
[1741896451176,0.186765,80346.0,80345.0,0.01164177]
[1741896451378,0.1245151,80342.0,80340.0,0.00186701]
[1741896451686,0.1245151,80342.0,80341.0,0.24585454]
[1741896451885,0.1245151,80342.0,80341.0,0.25998527]
[1741896452081,0.1245151,80342.0,80341.0,0.24828815]
[1741896452287,0.1245151,80342.0,80341.0,0.23718189]
[1741896452891,0.13562475,80342.0,80341.0,0.23718189]
[1741896453088,0.13562475,80342.0,80341.0,0.22305116]
[1741896453387,0.1245167,80341.0,80340.0,0.00186701]
[1741896453584,0.2449167,80341.0,80340.0,0.00186701]
[1741896453788,0.1868038,80332.0,80331.0,0.124527]
[1741896453978,0.2490706,80332.0,80331.0,0.13844716]
[1741896454175,0.2490706,80332.0,80331.0,0.01392016]
[1741896454784,0.3701706,80332.0,80331.0,0.01392016]
[1741896454990,0.3701706,80332.0,80331.0,0.13845236]
[1741896455187,0.3701706,80332.0,80331.0,0.01392016]
[1741896455387,0.12454,80326.0,80325.0,0.22305116]
[1741896456178,0.25665948,80326.0,80325.0,0.22305116]
[1741896457294,0.25765948,80326.0,80325.0,0.22305116]
[1741896457491,0.25765948,80326.0,80318.0,0.1868514]
[1741896457492,0.13311948,80326.0,80318.0,0.0623]
[1741896457687,0.1245493,80320.0,80319.0,0.062]
[1741896457883,0.1245601,80313.0,80312.0,0.01122153]
[1741896458193,0.1245617,80312.0,80311.0,0.00011639]
[1741896458498,0.1245617,80312.0,80311.0,0.12467959]
[1741896459185,0.1861617,80312.0,80311.0,0.12467959]
[1741896459691,0.1861617,80312.0,80311.0,0.18687959]
[1741896460084,0.0625,80313.0,80312.0,0.1245617]
[1741896460288,0.1870601,80313.0,80312.0,0.2497617]
[1741896461089,0.0625,80313.0,80312.0,0.2497617]
[1741896461285,0.1870601,80313.0,80312.0,0.2497617]
[1741896461588,0.2592239,80324.0,80323.0,0.1245446]
[1741896461988,0.1245477,80322.0,80321.0,0.2497469]
[1741896462589,0.2494477,80322.0,80321.0,0.0622]
[1741896463494,0.1245539,80317.0,80316.0,0.063]
[1741896463793,0.1868277,80319.0,80318.0,0.1245524]
[1741896464196,0.0622761,80319.0,80318.0,0.1245524]
[1741896464390,0.2504477,80322.0,80321.0,0.1245477]
[1741896464791,0.2504477,80322.0,80321.0,0.2440477]
[1741896465695,0.2504477,80322.0,80321.0,0.25519532]
[1741896466093,0.2494477,80322.0,80321.0,0.25519532]
[1741896466793,0.2504477,80322.0,80321.0,0.25519532]
[1741896467204,0.0634,80322.0,80321.0,0.25519532]
[1741896467701,0.1879462,80322.0,80321.0,0.25519532]
[1741896467898,0.0634,80322.0,80321.0,0.25519532]
[1741896468289,0.1879462,80322.0,80321.0,0.25519532]
[1741896471497,0.001,80322.0,80321.0,0.25519532]
[1741896471702,0.001,80322.0,80321.0,0.26694497]
[1741896472403,0.001,80322.0,80321.0,0.26691128]
[1741896472706,0.001,80322.0,80321.0,0.28097896]
[1741896474407,0.001,80322.0,80321.0,0.28097261]
[1741896475803,0.0627,80333.0,80321.0,0.29968488]
[1741896476003,0.18723,80333.0,80332.0,0.1245306]
[1741896476306,0.0622723,80323.0,80322.0,0.2490838]
[1741896476506,0.0622723,80323.0,80322.0,0.39663356]
[1741896477200,0.1249723,80323.0,80322.0,0.39663356]
[1741896477706,0.001,80323.0,80322.0,0.39663356]
[1741896477908,0.001,80323.0,80322.0,0.41550249]
[1741896479311,0.1255446,80323.0,80322.0,0.21249136]
[1741896479503,0.1255446,80323.0,80322.0,0.15039136]
[1741896479803,0.1854446,80323.0,80322.0,0.15039136]
[1741896480599,0.1854446,80323.0,80322.0,0.02584976]
[1741896480793,0.1854446,80323.0,80322.0,0.15039596]
[1741896482512,0.1844446,80323.0,80322.0,0.15039596]
[1741896482702,0.1844446,80323.0,80322.0,0.15539596]
[1741896482703,0.0609,80323.0,80322.0,0.15539596]
[1741896482900,0.1854446,80323.0,80322.0,0.1745503]
[1741896483100,0.1854446,80323.0,80322.0,0.17455024]
[1741896483615,0.1854446,80323.0,80322.0,0.15539596]
[1741896483800,0.0609,80323.0,80322.0,0.23757826]
[1741896484110,0.0609,80323.0,80322.0,0.23784682]
[1741896484709,0.0609,80323.0,80322.0,0.30234682]
[1741896485010,0.001,80323.0,80322.0,0.30234682]
[1741896485411,0.0609,80330.0,80322.0,0.19595731]
[1741896485606,0.001,80323.0,80322.0,0.29017057]
[1741896485805,0.001,80323.0,80322.0,0.32163078]
[1741896486209,0.001,80323.0,80322.0,0.38390348]
[1741896487313,0.0609,80326.0,80322.0,0.25835728]
[1741896487500,0.001,80323.0,80322.0,0.35244327]
[1741896487699,0.001,80323.0,80322.0,0.38438103]
[1741896488212,0.0627,80333.0,80332.0,0.1245306]
[1741896488413,0.0627,80338.0,80337.0,0.1245229]
[1741896488613,0.124494,80356.0,80339.0,0.0622591]
[1741896488914,0.124494,80356.0,80349.0,0.1245043]
[1741896488915,0.0627,80350.0,80349.0,0.1245043]
[1741896489113,0.0627,80350.0,80349.0,0.13678791]
[1741896489304,0.0627,80350.0,80349.0,0.15644206]
[1741896489505,0.0627,80350.0,80349.0,0.15085559]
[1741896489704,0.0627,80350.0,80349.0,0.17004966]
[1741896490104,0.0627,80350.0,80349.0,0.18168016]
[1741896490414,0.0627,80350.0,80349.0,0.18139102]
[1741896491112,0.1872028,80350.0,80349.0,0.18139102]
[1741896491300,0.0627,80350.0,80349.0,0.16219793]
[1741896492002,0.1872028,80350.0,80349.0,0.03769363]
[1741896492206,0.1872028,80350.0,80349.0,0.15056743]
[1741896492719,0.1872028,80350.0,80349.0,0.15656743]
[1741896493407,0.1872028,80350.0,80349.0,0.15654351]
[1741896493714,0.1872028,80350.0,80349.0,0.14457198]
[1741896494509,0.0627,80350.0,80349.0,0.16805107]
[1741896494714,0.1872028,80350.0,80349.0,0.22925107]
[1741896494916,0.1872028,80350.0,80349.0,0.21730221]
[1741896495210,0.1872028,80350.0,80349.0,0.22925102]
[1741896495617,0.1872028,80350.0,80349.0,0.15610221]
[1741896495816,0.19886096,80350.0,80349.0,0.03159791]
[1741896496006,0.1872028,80350.0,80349.0,0.14457198]
[1741896496611,0.1872028,80350.0,80349.0,0.02006768]
[1741896497612,0.1872028,80350.0,80349.0,0.14457198]
[1741896498003,0.1872028,80350.0,80349.0,0.1305043]
[1741896498204,0.0627,80350.0,80349.0,0.1245043]
[1741896498412,0.0627,80350.0,80349.0,0.1883043]
[1741896498807,0.0627,80350.0,80349.0,0.1823043]
[1741896499104,0.0627,80350.0,80349.0,0.20035848]
[1741896499311,0.0627,80350.0,80349.0,0.20035841]